fUSD/lending_fUSD_20260217
["ID","MTS","AMOUNT","RATE_DAILY","PERIOD"]
[405771713,1771291842153,-1471.46,0.00016958,2]
[405771714,1771291842171,-150.0,0.00016998,2]
[405771715,1771291842183,-154.85778265,0.00016998,2]
[405771716,1771291842194,-500.0,0.00016998,2]
[405771717,1771291842207,-500.0,0.00016998,2]
[405771718,1771291842219,-500.0,0.00016998,2]
[405771719,1771291842231,-500.0,0.00016998,2]
[405771720,1771291842243,-500.0,0.00016998,2]
[405771721,1771291842255,-500.0,0.00016998,2]
[405771722,1771291842267,-150.31509327,0.00016998,2]
[405771723,1771291842279,-500.0,0.00016998,2]
[405771724,1771291842292,-500.0,0.00016998,2]
[405771725,1771291842307,-575.0,0.00016998,2]
[405771726,1771291842319,-150.0,0.00016998,2]
[405771727,1771291842330,-500.0,0.00016998,2]
[405771728,1771291842343,-678.14,0.00016999,2]
[405771729,1771291842354,-1124.5,0.00016999,2]
[405771730,1771291842366,-915.21,0.00016999,2]
[405771731,1771291842380,-915.21,0.00016999,2]
[405771732,1771291842391,-915.21,0.00016999,2]
[405771733,1771291842402,-300.0,0.00017,2]
[405771734,1771291842414,-721903.79182881,0.00017,2]
[405771735,1771291842425,-712.87,0.0001703,2]
[405771736,1771291842436,-150.0,0.00017053,2]
[405771737,1771291842447,-500.0,0.00017053,2]
[405771738,1771291842459,-500.0,0.00017053,2]
[405771739,1771291842470,-500.0,0.00017053,2]
[405771740,1771291842481,-500.0,0.00017053,2]
[405771741,1771291842493,-500.0,0.00017053,2]
[405771742,1771291842504,-500.0,0.00017053,2]
[405771743,1771291842515,-500.0,0.00017053,2]
[405771744,1771291842526,-500.0,0.00017053,2]
[405771745,1771291842538,-575.0,0.00017053,2]
[405771746,1771291842550,-150.0,0.00017053,2]
[405771747,1771291842560,-500.0,0.00017053,2]
[405771748,1771291842571,-76264.032882,0.00017105,2]
[405771749,1771291842582,-150.0,0.00017108,2]
[405771750,1771291842594,-500.0,0.00017108,2]
[405771751,1771291842605,-500.0,0.00017108,2]
[405771752,1771291842616,-500.0,0.00017108,2]
[405771753,1771291842627,-154.49885719,0.00017108,2]
[405771754,1771291842639,-500.0,0.00017108,2]
[405771755,1771291842650,-500.0,0.00017108,2]
[405771756,1771291842662,-500.0,0.00017108,2]
[405771757,1771291842673,-616.5683879,0.00017108,2]
[405771758,1771291842684,-575.0,0.00017108,2]
[405771759,1771291842694,-150.0,0.00017108,2]
[405771760,1771291842705,-500.0,0.00017108,2]
[405771761,1771291842716,-1471.46,0.00017141,2]
[405771762,1771291842726,-915.21,0.00017161,2]
[405771763,1771291842737,-500.0,0.00017162,2]
[405771764,1771291842748,-500.0,0.00017162,2]
[405771765,1771291842759,-150.0,0.00017162,2]
[405771766,1771291842770,-500.0,0.00017162,2]
[405771767,1771291842781,-500.0,0.00017162,2]
[405771768,1771291842791,-500.0,0.00017162,2]
[405771769,1771291842802,-150.0,0.00017162,2]
[405771770,1771291842812,-444.0,0.00017162,2]
[405771771,1771291842823,-500.0,0.00017162,2]
[405771772,1771291842834,-150.0,0.00017162,2]
[405771773,1771291842845,-150.0,0.00017162,2]
[405771774,1771291842856,-150.0,0.00017162,2]
[405771775,1771291842867,-187.36614029,0.00017162,2]
[405771776,1771291842878,-500.0,0.00017162,2]
[405771777,1771291842889,-500.0,0.00017162,2]
[405771778,1771291842900,-500.0,0.00017162,2]
[405771779,1771291842910,-500.0,0.00017162,2]
[405771780,1771291842921,-500.0,0.00017162,2]
[405771781,1771291842932,-575.0,0.00017162,2]
[405771782,1771291842943,-150.0,0.00017162,2]
[405771783,1771291842954,-500.0,0.00017162,2]
[405771784,1771291842965,-500.0,0.00017217,2]
[405771785,1771291842976,-500.0,0.00017217,2]
[405771787,1771291842987,-150.0,0.00017217,2]
[405771789,1771291842998,-500.0,0.00017217,2]
[405771792,1771291843010,-500.0,0.00017217,2]
[405771793,1771291843020,-500.0,0.00017217,2]
[405771794,1771291843031,-444.0,0.00017217,2]
[405771795,1771291843043,-500.0,0.00017217,2]
[405771796,1771291843054,-150.0,0.00017217,2]
[405771797,1771291843064,-500.0,0.00017217,2]
[405771798,1771291843075,-500.0,0.00017217,2]
[405771799,1771291843086,-500.0,0.00017217,2]
[405771800,1771291843097,-500.0,0.00017217,2]
[405771801,1771291843109,-500.0,0.00017217,2]
[405771802,1771291843120,-575.0,0.00017217,2]
[405771803,1771291843131,-201.09695119,0.00017217,2]
[405771804,1771291843142,-500.0,0.00017217,2]
[405771805,1771291843154,-500.0,0.00017272,2]
[405771806,1771291843164,-500.0,0.00017272,2]
[405771807,1771291843175,-500.0,0.00017272,2]
[405771808,1771291843186,-500.0,0.00017272,2]
[405771809,1771291843196,-500.0,0.00017272,2]
[405771810,1771291843207,-444.0,0.00017272,2]
[405771811,1771291843218,-500.0,0.00017272,2]
[405771812,1771291843229,-250.0,0.00017272,2]
[405771813,1771291843240,-500.0,0.00017272,2]
[405771814,1771291843252,-500.0,0.00017272,2]
[405771815,1771291843263,-500.0,0.00017272,2]
[405771816,1771291843274,-500.0,0.00017272,2]
[405771817,1771291843284,-500.0,0.00017272,2]
[405771818,1771291843295,-575.0,0.00017272,2]
[405771819,1771291843308,-500.33776257,0.00017272,2]
[405771820,1771291843319,-502.0,0.000173,2]
[405771821,1771291843330,-1543.59,0.00017301,2]
[405771822,1771291843342,-1471.46,0.00017323,2]
[405771823,1771291843353,-500.0,0.00017326,2]
[405771824,1771291843363,-500.0,0.00017326,2]
[405771825,1771291843375,-503.21249017,0.00017326,2]
[405771826,1771291843386,-500.0,0.00017326,2]
[405771827,1771291843397,-500.0,0.00017326,2]
[405771828,1771291843407,-444.0,0.00017326,2]
[405771829,1771291843418,-500.0,0.00017326,2]
[405771830,1771291843429,-500.0,0.00017327,2]
[405771831,1771291843439,-500.0,0.00017327,2]
[405771832,1771291843450,-500.0,0.00017327,2]
[405771833,1771291843461,-500.0,0.00017327,2]
[405771834,1771291843471,-500.0,0.00017327,2]
[405771835,1771291843482,-575.0,0.00017327,2]
[405771836,1771291843493,-8995.0,0.00017338,2]
[405771837,1771291843504,-2230.0,0.00017339,2]
[405771838,1771291843515,-1600.0,0.00017356,2]
[405771839,1771291843525,-500.0,0.00017381,2]
[405771840,1771291843535,-508.70137537,0.00017381,2]
[405771841,1771291843546,-500.0,0.00017381,2]
[405771842,1771291843558,-500.0,0.00017381,2]
[405771843,1771291843568,-444.0,0.00017381,2]
[405771844,1771291843578,-500.0,0.00017381,2]
[405771845,1771291843589,-500.0,0.00017382,2]
[405771846,1771291843599,-500.0,0.00017382,2]
[405771847,1771291843610,-500.0,0.00017382,2]
[405771848,1771291843620,-500.0,0.00017382,2]
[405771849,1771291843631,-500.0,0.00017382,2]
[405771850,1771291843642,-575.0,0.00017382,2]
[405771851,1771291843652,-500.0,0.00017436,2]
[405771852,1771291843663,-500.0,0.00017436,2]
[405771853,1771291843674,-500.0,0.00017436,2]
[405771854,1771291843684,-444.0,0.00017436,2]
[405771855,1771291843694,-500.0,0.00017436,2]
[405771856,1771291843704,-500.0,0.00017436,2]
[405771857,1771291843714,-500.0,0.00017436,2]
[405771858,1771291843724,-500.0,0.00017436,2]
[405771859,1771291843734,-500.0,0.00017436,2]
[405771860,1771291843744,-500.0,0.00017436,2]
[405771861,1771291843754,-575.0,0.00017436,2]
[405771862,1771291843765,-500.0,0.00017491,2]
[405771863,1771291843775,-500.0,0.00017491,2]
[405771864,1771291843785,-618.65019643,0.00017491,2]
[405771865,1771291843795,-444.0,0.00017491,2]
[405771866,1771291843806,-500.0,0.00017491,2]
[405771867,1771291843816,-153.57378643,0.00017491,2]
[405771868,1771291843827,-155.81655615,0.00017491,2]
[405771870,1771291843837,-500.0,0.00017491,2]
[405771872,1771291843847,-500.0,0.00017491,2]
[405771874,1771291843858,-500.0,0.00017491,2]
[405771876,1771291843868,-575.0,0.00017491,2]
[405771878,1771291843879,-769.837968,0.00017531,7]
[405771880,1771291843889,-500.0,0.00017546,2]
[405771882,1771291843900,-500.0,0.00017546,2]
[405771884,1771291843911,-444.0,0.00017546,2]
[405771887,1771291843923,-500.0,0.00017546,2]
[405771926,1771291844304,-500.0,0.00017546,2]
[405771929,1771291844331,-500.0,0.00017546,2]
[405771931,1771291844342,-500.0,0.00017546,2]
[405771933,1771291844351,-575.0,0.00017546,2]
[405771935,1771291844361,-500.0,0.000176,2]
[405771937,1771291844373,-500.0,0.000176,2]
[405771939,1771291844383,-500.0,0.000176,2]
[405771941,1771291844393,-209.0,0.000176,2]
[405771943,1771291844402,-500.0,0.000176,2]
[405771945,1771291844413,-500.0,0.000176,2]
[405771947,1771291844422,-444.0,0.000176,2]
[405771949,1771291844433,-500.0,0.000176,2]
[405771951,1771291844442,-500.0,0.00017601,2]
[405771953,1771291844452,-500.0,0.00017601,2]
[405771955,1771291844461,-575.0,0.00017601,2]
[405771957,1771291844471,-361.9355564,0.00017601,2]
[405771959,1771291844480,-500.0,0.00017655,2]
[405771961,1771291844490,-500.0,0.00017655,2]
[405771963,1771291844500,-444.0,0.00017655,2]
[405771965,1771291844510,-500.0,0.00017655,2]
[405771967,1771291844520,-500.0,0.00017656,2]
[405771969,1771291844530,-500.0,0.00017656,2]
[405771971,1771291844540,-575.0,0.00017656,2]
[405771973,1771291844550,-784.20386678,0.000177,2]
[405771975,1771291844560,-403.0,0.000177,5]
[405771977,1771291844570,-500.0,0.0001771,2]
[405771979,1771291844583,-500.0,0.0001771,2]
[405771981,1771291844594,-500.0,0.0001771,2]
[405771983,1771291844604,-444.0,0.0001771,2]
[405771985,1771291844613,-150.0,0.0001771,2]
[405771987,1771291844623,-500.0,0.0001771,2]
[405771989,1771291844633,-150.0,0.0001771,2]
[405771991,1771291844644,-500.0,0.0001771,2]
[405771993,1771291844654,-498.26652801,0.0001771,2]
[405771995,1771291844663,-575.0,0.0001771,2]
[405771997,1771291844673,-1388.96,0.00017728,2]
[405771999,1771291844683,-29999.99,0.00017728,2]
[405772001,1771291844694,-9999.99,0.00017728,2]
[405772003,1771291844703,-500.0,0.00017765,2]
[405772005,1771291844714,-500.0,0.00017765,2]
[405772007,1771291844723,-500.0,0.00017765,2]
[405772009,1771291844733,-444.0,0.00017765,2]
[405772011,1771291844742,-150.0,0.00017765,2]
[405772013,1771291844752,-500.0,0.00017765,2]
[405772015,1771291844762,-250.0,0.00017765,2]
[405772017,1771291844771,-611.76249723,0.00017765,2]
[405772019,1771291844781,-575.0,0.00017765,2]
[405772021,1771291844791,-500.0,0.00017808,2]
[405772023,1771291844800,-500.0,0.00017808,2]
[405772025,1771291844810,-500.0,0.00017808,2]
[405772027,1771291844820,-500.0,0.00017808,2]
[405772029,1771291844830,-500.0,0.00017808,2]
[405772031,1771291844840,-550.33934066,0.00017808,2]
[405772033,1771291844850,-500.0,0.00017808,2]
[405772034,1771291844860,-500.0,0.00017808,2]
[405772036,1771291844870,-300.0,0.00017808,2]
[405772038,1771291844880,-800.0,0.00017808,2]
[405772040,1771291844890,-500.0,0.0001782,2]
[405772042,1771291844900,-500.0,0.0001782,2]
[405772043,1771291844910,-500.0,0.0001782,2]
[405772045,1771291844919,-444.0,0.0001782,2]
[405772047,1771291844929,-150.0,0.0001782,2]
[405772049,1771291844939,-500.0,0.0001782,2]
[405772050,1771291844948,-575.0,0.0001782,2]
[405772051,1771291844958,-1003.96031396,0.0001786,2]
[405772052,1771291844967,-501.0,0.00017865,2]
[405772053,1771291844977,-500.0,0.00017874,2]
[405772054,1771291844987,-288.0,0.00017874,2]
[405772055,1771291844997,-500.0,0.00017874,2]
[405772056,1771291845006,-444.0,0.00017874,2]
[405772057,1771291845016,-150.0,0.00017874,2]
[405772058,1771291845026,-500.0,0.00017874,2]
[405772059,1771291845036,-575.0,0.00017875,2]
[405772060,1771291845046,-160.57318335,0.00017893,2]
[405772061,1771291845056,-1099.53822569,0.000179,2]
[405772062,1771291845065,-2554.58146818,0.000179,5]
[405772063,1771291845075,-10351.92431005,0.000179,2]
[405772064,1771291845085,-3564.76338004,0.000179,2]
[405772065,1771291845095,-2999.87979965,0.000179,2]
[405772066,1771291845104,-500.0,0.00017918,2]
[405772067,1771291845114,-500.0,0.00017918,2]
[405772068,1771291845123,-500.0,0.00017918,2]
[405772069,1771291845133,-500.0,0.00017918,2]
[405772070,1771291845142,-510.0,0.00017918,2]
[405772071,1771291845152,-500.0,0.00017929,2]
[405772072,1771291845162,-444.0,0.00017929,2]
[405772073,1771291845171,-500.0,0.00017929,2]
[405772074,1771291845181,-150.0,0.00017929,2]
[405772075,1771291845191,-500.0,0.00017929,2]
[405772076,1771291845200,-575.0,0.0001793,2]
[405772077,1771291845210,-1433.34452441,0.00017946,2]
[405772078,1771291845220,-264.60246514,0.00017984,2]
[405772079,1771291845229,-444.0,0.00017984,2]
[405772080,1771291845239,-500.0,0.00017984,2]
[405772081,1771291845249,-223.82378677,0.00017984,2]
[405772082,1771291845259,-500.0,0.00017984,2]
[405772083,1771291845269,-575.0,0.00017984,2]
[405772084,1771291845278,-679.1700837,0.0001799,2]
[405772085,1771291845288,-300.0,0.00017999,2]
[405772086,1771291845298,-666.0,0.00017999,2]
[405772087,1771291845308,-300.0,0.00017999,2]
[405772088,1771291845318,-502.75243677,0.00017999,2]
[405772089,1771291845327,-915.21,0.00017999,2]
[405772090,1771291845337,-915.21,0.00017999,2]
[405772091,1771291845346,-915.21,0.00017999,2]
[405772092,1771291845355,-915.21,0.00017999,2]
[405772093,1771291845365,-915.21,0.00017999,2]
[405772094,1771291845374,-915.21,0.00017999,2]
[405772095,1771291845384,-915.2263384,0.00017999,2]
[405772096,1771291845393,-23532.64461985,0.00017999,2]
[405772097,1771291845402,-8207336.98265902,0.00018,2]
[405772098,1771291845785,-20879.67976478,0.00018,2]
[405772099,1771291845797,-2290.38582166,0.00018,2]
[405772100,1771291845809,-2277.0831524,0.00018,2]
[405772101,1771291845824,-153990.46774388,0.00018,2]
[405772102,1771291845835,-43333.92532894,0.00018,2]
[405772103,1771291845847,-325.47403664,0.00018,2]
[405772104,1771291845878,-8481762.18190104,0.00018,2]
[405772105,1771291845890,-247310.43985119,0.00018,2]
[405772109,1771291847418,-500.0,0.00013698,2]
[405772110,1771291847428,-522.8568204,0.00018,2]
[405772113,1771292023674,-32222.0,8.767e-05,2]
[405772114,1771292153240,150.0,0.00011233,120]
[405772115,1771292164003,1000.0,8.42e-05,2]
[405772116,1771292249117,3868.1,8.593e-05,2]
[405772117,1771292345032,2240.06280469,8.5e-05,3]
[405772118,1771292345096,3494.10048751,8.5e-05,3]
[405772119,1771292345141,3180.5910668,8.5e-05,3]
[405772120,1771292345201,3807.60990821,8.5e-05,3]
[405772121,1771292351617,500.0,8.403e-05,2]
[405772122,1771292367883,419.31360478,0.00018,30]
[405772123,1771292450785,166.66,8.576e-05,2]
[405772125,1771292504937,10000.01,8.566e-05,2]
[405772126,1771292504961,4833.35,8.566e-05,2]
[405772127,1771292504983,5000.01,8.566e-05,2]
[405772128,1771292505005,5000.01,8.566e-05,2]
[405772129,1771292505029,5000.01,8.566e-05,2]
[405772130,1771292505052,5000.01,8.566e-05,2]
[405772131,1771292505076,5000.01,8.566e-05,2]
[405772132,1771292505098,5000.01,8.566e-05,2]
[405772133,1771292505120,5000.01,8.566e-05,2]
[405772134,1771292505141,5000.01,8.566e-05,2]
[405772135,1771292505164,5000.01,8.566e-05,2]
[405772136,1771292508868,-3771.62262764,8.566e-05,2]
[405772137,1771292508976,-10000.01,8.566e-05,2]
[405772138,1771292509151,-10000.01,8.566e-05,2]
[405772139,1771292509296,-10000.01,8.566e-05,2]
[405772140,1771292509401,-10000.01,8.566e-05,2]
[405772141,1771292509492,-10000.01,8.566e-05,2]
[405772142,1771292509614,-10000.01,8.566e-05,2]
[405772143,1771292509713,-10000.01,8.566e-05,2]
[405772144,1771292510701,-3968.977938,8.566e-05,2]
[405772145,1771292510796,-5000.01,8.566e-05,2]
[405772146,1771292510905,-5000.01,8.566e-05,2]
[405772147,1771292511027,-5000.01,8.566e-05,2]
[405772148,1771292511120,-5000.01,8.566e-05,2]
[405772149,1771292511220,-5000.01,8.566e-05,2]
[405772150,1771292511325,-5000.01,8.566e-05,2]
[405772151,1771292511549,-10000.01,8.566e-05,2]
[405772152,1771292511634,-10000.01,8.566e-05,2]
[405772153,1771292511745,-10000.01,8.566e-05,2]
[405772154,1771292513335,-5000.01,8.566e-05,2]
[405772155,1771292513451,-5000.01,8.566e-05,2]
[405772156,1771292513635,-5000.01,8.566e-05,2]
[405772157,1771292513682,-5000.01,8.566e-05,2]
[405772158,1771292513793,-5000.01,8.566e-05,2]
[405772159,1771292514135,-5000.01,8.566e-05,2]
[405772160,1771292514192,-5000.01,8.566e-05,2]
[405772161,1771292514261,-5000.01,8.566e-05,2]
[405772162,1771292514297,-5000.01,8.566e-05,2]
[405772163,1771292514361,-5000.01,8.566e-05,2]
[405772164,1771292519541,-5000.01,8.566e-05,2]
[405772165,1771292519642,-5000.01,8.566e-05,2]
[405772166,1771292519751,-5000.01,8.566e-05,2]
[405772167,1771292520685,-10000.01,8.566e-05,2]
[405772168,1771292522067,2987.23964756,8.4e-05,3]
[405772169,1771292522413,4263.99748897,8.4e-05,3]
[405772170,1771292522460,4689.5834361,8.4e-05,3]
[405772171,1771292522504,5115.16938324,8.4e-05,3]
[405772172,1771292525587,-300.0,8.565e-05,2]
[405772173,1771292525616,-300.0,8.565e-05,2]
[405772174,1771292525645,-150.0,8.565e-05,2]
[405772175,1771292525674,-912.49772934,8.566e-05,2]
[405772176,1771292525702,-398.73366323,8.566e-05,2]
[405772177,1771292525793,-877.54721486,8.566e-05,2]
[405772178,1771292525876,-877.54721486,8.566e-05,2]
[405772179,1771292525900,-3244.91557028,8.566e-05,2]
[405772180,1771292525956,-5000.01,8.566e-05,2]
[405772181,1771292527497,-10000.01,8.566e-05,2]
[405772182,1771292594952,538.019,0.00018,30]
[405772183,1771292624772,450.0,0.00011168,7]
[405772184,1771292667187,2655.35355479,8.6e-05,3]
[405772185,1771292667261,4158.56568766,8.6e-05,3]
[405772186,1771292667588,3782.76265445,8.6e-05,3]
[405772187,1771292667639,2069.85811628,8.6e-05,3]
[405772188,1771292667667,2464.5106046,8.6e-05,3]
[405772194,1771292821853,-4565.81,7.919e-05,2]
[405772195,1771292821882,-250.0,7.932e-05,2]
[405772196,1771292821915,-63.751335,7.945e-05,2]
[405772197,1771292821963,-240.88733,7.945e-05,2]
[405772198,1771292822075,-500.0,7.945e-05,2]
[405772199,1771292822104,-1038.92,7.948e-05,2]
[405772200,1771292822133,-300.85469988,8.05e-05,2]
[405772201,1771292822161,-1200.0,8.218e-05,2]
[405772202,1771292822194,-300.0,8.218e-05,2]
[405772203,1771292822224,-1092.42060024,8.219e-05,2]
[405772204,1771292822323,-1135.61939976,8.219e-05,2]
[405772207,1771292825688,-250.0,7.946e-05,2]
[405772208,1771292825717,-1140.85592561,8.538e-05,2]
[405772209,1771292825744,-300.0,8.538e-05,2]
[405772210,1771292825772,-300.0,8.538e-05,2]
[405772211,1771292825799,-300.0,8.538e-05,2]
[405772212,1771292825827,-150.0,8.539e-05,2]
[405772213,1771292825855,-150.0,8.539e-05,2]
[405772214,1771292825884,-182.0,8.547e-05,2]
[405772215,1771292825911,-150.0,8.547e-05,2]
[405772216,1771292826240,-4154.29814878,8.548e-05,2]
[405772220,1771292830900,-10000.01,8.548e-05,2]
[405772221,1771292831066,-10000.01,8.548e-05,2]
[405772230,1771292929883,199.0,7.529e-05,2]
[405772232,1771293032422,-300.0,7.998e-05,2]
[405772233,1771293032431,-1200.0,7.998e-05,2]
[405772234,1771293032441,-217.0,7.999e-05,2]
[405772235,1771293032450,-20780.3,7.999e-05,2]
[405772236,1771293032460,-1852.42,8.061e-05,2]
[405772237,1771293032469,-150.0,8.539e-05,2]
[405772238,1771293032479,-150.0,8.539e-05,2]
[405772239,1771293032488,-300.0,8.547e-05,2]
[405772240,1771293032497,-150.0,8.547e-05,2]
[405772241,1771293032506,-68474.68185122,8.548e-05,2]
[405772242,1771293032515,-1380.94558707,8.563e-05,2]
[405772243,1771293032524,-1380.94558707,8.563e-05,2]
[405772244,1771293032534,-1380.94558707,8.563e-05,2]
[405772245,1771293032542,-1380.94558707,8.563e-05,2]
[405772246,1771293032551,-1380.94558707,8.563e-05,2]
[405772247,1771293032561,-1380.94558707,8.563e-05,2]
[405772248,1771293032570,-1380.94558707,8.563e-05,2]
[405772249,1771293032579,-1380.94558707,8.563e-05,2]
[405772250,1771293032588,-1380.94558707,8.563e-05,2]
[405772251,1771293032597,-1380.94558707,8.563e-05,2]
[405772252,1771293032605,-1380.94558707,8.563e-05,2]
[405772253,1771293032614,-1380.94558707,8.563e-05,2]
[405772254,1771293032623,-1380.94558707,8.563e-05,2]
[405772255,1771293032632,-1380.94558707,8.563e-05,2]
[405772256,1771293032641,-1380.94558707,8.563e-05,2]
[405772257,1771293032650,-1380.94558707,8.563e-05,2]
[405772258,1771293032659,-1380.94558707,8.563e-05,2]
[405772259,1771293032668,-1380.94558707,8.563e-05,2]
[405772260,1771293032677,-1380.94558707,8.563e-05,2]
[405772261,1771293032686,-1380.94558707,8.563e-05,2]
[405772262,1771293032695,-1380.94558707,8.563e-05,2]
[405772263,1771293032704,-1380.94558711,8.563e-05,2]
[405772264,1771293032713,-1380.94558711,8.563e-05,2]
[405772265,1771293032723,-500.0,8.565e-05,2]
[405772266,1771293032732,-6737.6189,8.566e-05,2]
[405772267,1771293032741,-499.99,8.567e-05,2]
[405772268,1771293032750,-14638.92,8.567e-05,2]
[405772269,1771293032760,-142.1629141,8.567e-05,2]
[405772270,1771293032775,-9857.8270859,8.567e-05,2]
[405772271,1771293032784,-150.99,8.567e-05,2]
[405772272,1771293032793,-9999.99,8.567e-05,2]
[405772273,1771293032802,-9999.99,8.567e-05,2]
[405772274,1771293032813,-256.12366988,8.587e-05,2]
[405772275,1771293032822,-201.40621561,8.594e-05,2]
[405772276,1771293032831,-562.0,8.651e-05,2]
[405772277,1771293032840,-12288.94243315,8.665e-05,2]
[405772278,1771293032853,-69135.01756685,8.665e-05,2]
[405772279,1771293032862,-211.21,8.666e-05,2]
[405772280,1771293032871,-150.99,8.666e-05,2]
[405772281,1771293032880,-299.99,8.666e-05,2]
[405772282,1771293032889,-9999.99,8.666e-05,2]
[405772283,1771293032898,-9999.99,8.666e-05,2]
[405772284,1771293032907,-999.99,8.666e-05,2]
[405772285,1771293032916,-10000.0,8.699e-05,2]
[405772286,1771293032925,-244.31,8.7e-05,2]
[405772287,1771293032934,-250.0,8.711e-05,2]
[405772288,1771293032943,-250.0,8.74e-05,2]
[405772289,1771293032952,-10140.59556779,8.767e-05,2]
[405772290,1771293033026,-1917.42030992,8.767e-05,2]
[405772291,1771293033037,-843.15999999,8.767e-05,2]
[405772292,1771293033049,-310.05,8.767e-05,2]
[405772293,1771293038521,-988.7741223,8.767e-05,2]
[405772294,1771293038530,-643.69145293,8.798e-05,2]
[405772295,1771293038540,-500.0,8.798e-05,2]
[405772296,1771293038550,-179.34020103,8.798e-05,2]
[405772297,1771293038559,-500.0,8.798e-05,2]
[405772298,1771293038568,-500.0,8.798e-05,2]
[405772299,1771293038578,-500.0,8.798e-05,2]
[405772300,1771293038586,-500.0,8.798e-05,2]
[405772301,1771293038596,-500.0,8.798e-05,2]
[405772302,1771293038605,-500.0,8.798e-05,2]
[405772303,1771293038614,-156.9967868,8.798e-05,2]
[405772304,1771293038623,-500.0,8.798e-05,2]
[405772305,1771293038632,-500.0,8.798e-05,2]
[405772306,1771293038641,-1680.0,8.798e-05,2]
[405772307,1771293038650,-301.0,8.798e-05,2]
[405772308,1771293038660,-1474.0735,8.799e-05,2]
[405772309,1771293038669,-9524.45202267,8.799e-05,2]
[405772310,1771293038691,-186.15693369,8.799e-05,2]
[405772311,1771293038702,-209325.21068924,8.799e-05,2]
[405772312,1771293038712,-507.71285999,8.799e-05,2]
[405772313,1771293038723,-12190.42460037,8.799e-05,2]
[405772314,1771293038735,-1316.31395777,8.799e-05,2]
[405772315,1771293038747,-366690.89803627,8.799e-05,2]
[405772316,1771293038756,-500.0,8.839e-05,2]
[405772317,1771293038770,-166.66,8.86e-05,2]
[405772318,1771293038784,-500.0,8.898e-05,2]
[405772319,1771293038793,-32850.4601,8.899e-05,2]
[405772320,1771293038802,-211.21,8.94e-05,2]
[405772321,1771293038812,-500.0,9.113e-05,2]
[405772322,1771293038821,-166.66,9.143e-05,2]
[405772323,1771293038831,-1000.0,9.199e-05,2]
[405772324,1771293038840,-1000.0,9.199e-05,2]
[405772325,1771293038849,-211.21,9.214e-05,2]
[405772326,1771293038858,-285.43099402,9.267e-05,2]
[405772327,1771293038868,-241505.08943117,9.278e-05,2]
[405772328,1771293038877,-500.0,9.387e-05,2]
[405772329,1771293038886,-250.0,9.393e-05,2]
[405772330,1771293038895,-1000.0,9.399e-05,2]
[405772331,1771293038905,-420.0,9.402e-05,2]
[405772332,1771293038915,-255.0,9.402e-05,2]
[405772333,1771293038924,-166.66,9.426e-05,2]
[405772334,1771293038934,-1000.0,9.473e-05,2]
[405772335,1771293038943,-211.21,9.488e-05,2]
[405772336,1771293038952,-500.0,9.661e-05,2]
[405772337,1771293038962,-2351.0,9.678e-05,2]
[405772338,1771293038971,-166.66,9.709e-05,2]
[405772339,1771293038981,-211.21490725,9.762e-05,2]
[405772340,1771293038990,-500.0,9.935e-05,2]
[405772341,1771293039000,-305.44811842,9.987e-05,2]
[405772342,1771293039010,-166.66,9.992e-05,2]
[405772343,1771293039019,-500.0,0.0001,2]
[405772344,1771293039029,-500.0,0.0001,2]
[405772345,1771293039038,-1295.70769334,0.0001,2]
[405772346,1771293039048,-500.0,0.0001,2]
[405772347,1771293039058,-500.0,0.0001,2]
[405772348,1771293039068,-500.0,0.0001,2]
[405772349,1771293039077,-500.0,0.0001,2]
[405772350,1771293039087,-500.0,0.0001,2]